fUSD/lending_fUSD_20251024
["ID","MTS","AMOUNT","RATE_DAILY","PERIOD"]
[392236166,1761274258553,-500.0,0.00041369,30]
[392236167,1761274258562,-564.9,0.00041369,30]
[392236168,1761274258571,-997.82,0.00041369,30]
[392236169,1761274258580,-500.0,0.00041369,30]
[392236170,1761274258590,-500.0,0.00041369,30]
[392236171,1761274258599,-926.63,0.00041369,30]
[392236172,1761274258608,-934.73,0.00041369,30]
[392236173,1761274258618,-536.07,0.00041369,30]
[392236174,1761274258631,-500.0,0.00041369,30]
[392236175,1761274258640,-978.36,0.00041369,30]
[392236176,1761274258649,-500.0,0.00041369,30]
[392236177,1761274258658,-500.0,0.00041369,30]
[392236178,1761274258669,-940.4,0.00041369,30]
[392236179,1761274258679,-500.0,0.00041369,30]
[392236180,1761274258688,-500.0,0.00041369,30]
[392236181,1761274258698,-500.0,0.00041369,30]
[392236182,1761274258707,-151.0,0.00041369,120]
[392236183,1761274258716,-151.0,0.00041369,120]
[392236184,1761274258726,-500.0,0.00041369,30]
[392236185,1761274258735,-500.0,0.00041369,30]
[392236186,1761274258744,-500.0,0.00041369,30]
[392236187,1761274258753,-500.0,0.00041373,10]
[392236188,1761274258763,-487.61641369,0.00041373,10]
[392236189,1761274258772,-501.64168909,0.00041373,7]
[392236190,1761274258781,-500.0,0.00041373,5]
[392236191,1761274258790,-500.0,0.00041373,10]
[392236192,1761274258799,-500.0,0.00041373,10]
[392236193,1761274258808,-500.0,0.00041373,10]
[392236194,1761274258818,-500.0,0.00041373,10]
[392236195,1761274258828,-500.0,0.00041373,10]
[392236196,1761274258837,-500.7278981,0.00041373,10]
[392236197,1761274258847,-500.0,0.00041373,10]
[392236198,1761274258856,-500.0,0.00041373,2]
[392236199,1761274258865,-500.0,0.00041373,10]
[392236200,1761274258876,-502.64413124,0.00041373,10]
[392236201,1761274258887,-502.68204026,0.00041373,10]
[392236202,1761274258896,-502.05388848,0.00041373,5]
[392236203,1761274258906,-500.0,0.00041411,7]
[392236204,1761274258916,-176.271544,0.00041412,120]
[392236205,1761274258926,-151.0,0.00041412,120]
[392236206,1761274258935,-151.0,0.00041412,120]
[392236207,1761274258946,-151.0,0.00041412,120]
[392236208,1761274258957,-151.0,0.00041412,120]
[392236209,1761274258968,-305.552442,0.00041412,120]
[392236210,1761274258979,-305.552442,0.00041412,120]
[392236211,1761274258990,-305.552442,0.00041412,120]
[392236212,1761274259001,-305.552432,0.00041412,120]
[392236213,1761274259011,-500.0,0.00041421,7]
[392236214,1761274259022,-3021.8217736,0.00041422,2]
[392236215,1761274259033,-231373.2996849,0.00041422,2]
[392236216,1761274259043,-151.0,0.00041422,120]
[392236217,1761274259052,-154.54123,0.00041422,120]
[392236218,1761274259063,-256.817869,0.00041422,120]
[392236219,1761274259074,-151.0,0.00041422,120]
[392236220,1761274259085,-151.000004,0.00041422,120]
[392236221,1761274259096,-159.863054,0.00041422,2]
[392236222,1761274259107,-151.0,0.00041422,120]
[392236223,1761274259119,-151.0,0.00041422,120]
[392236224,1761274259127,-150.70224,0.000415,9]
[392236225,1761274259138,-151.0,0.00041522,120]
[392236226,1761274259147,-161.213335,0.00041522,120]
[392236227,1761274259158,-5221.37624001,0.00041543,15]
[392236228,1761274259169,-907.29432203,0.00041543,120]
[392236229,1761274259179,-150.0,0.00041616,30]
[392236230,1761274259190,-396.6,0.00041621,7]
[392236231,1761274259201,-12106.95374205,0.0004163,15]
[392236232,1761274259213,-500.0,0.00041632,120]
[392236233,1761274259224,-500.0,0.00041632,30]
[392236234,1761274259235,-500.0,0.00041632,30]
[392236235,1761274259246,-500.0,0.00041632,30]
[392236236,1761274259258,-500.0,0.00041632,30]
[392236237,1761274259268,-500.0,0.00041632,30]
[392236238,1761274259278,-500.0,0.00041632,30]
[392236239,1761274259288,-500.0,0.00041632,30]
[392236240,1761274259297,-500.0,0.00041632,30]
[392236241,1761274259307,-500.0,0.00041632,30]
[392236242,1761274259317,-500.0,0.00041632,30]
[392236243,1761274259326,-500.0,0.00041632,30]
[392236244,1761274259336,-1075.14,0.00041632,30]
[392236245,1761274259345,-500.0,0.00041632,30]
[392236246,1761274259354,-500.0,0.00041632,30]
[392236247,1761274259363,-500.0,0.00041632,30]
[392236248,1761274259372,-500.0,0.00041632,30]
[392236249,1761274259382,-500.0,0.00041632,30]
[392236250,1761274259392,-800.47,0.00041632,30]
[392236251,1761274259401,-500.0,0.00041632,30]
[392236252,1761274259410,-531.44,0.00041632,30]
[392236253,1761274259420,-500.0,0.00041632,30]
[392236254,1761274259429,-500.0,0.00041632,30]
[392236255,1761274259439,-151.770404,0.00041632,120]
[392236256,1761274259449,-906.59,0.00041632,30]
[392236257,1761274259458,-269.81967446,0.00041632,30]
[392236258,1761274259468,-500.0,0.00041632,30]
[392236259,1761274259478,-500.0,0.00041632,30]
[392236260,1761274259487,-500.0,0.00041632,30]
[392236261,1761274259496,-505.7324775,0.00041632,30]
[392236262,1761274259506,-500.0,0.00041632,30]
[392236263,1761274259515,-500.0,0.00041632,30]
[392236264,1761274259524,-281.59953012,0.00041632,30]
[392236265,1761274259533,-500.0,0.00041632,30]
[392236266,1761274259543,-500.0,0.00041632,30]
[392236267,1761274259553,-516.95,0.00041632,30]
[392236268,1761274259562,-882.49,0.00041632,30]
[392236269,1761274259571,-500.0,0.00041632,30]
[392236270,1761274259581,-500.0,0.00041632,30]
[392236271,1761274259592,-500.0,0.00041632,30]
[392236272,1761274259602,-917.1,0.00041632,30]
[392236273,1761274259613,-500.0,0.00041632,30]
[392236274,1761274259624,-500.0,0.00041632,30]
[392236275,1761274259633,-500.0,0.00041632,30]
[392236276,1761274259642,-500.0,0.00041632,30]
[392236277,1761274259651,-500.0,0.00041632,30]
[392236278,1761274259660,-500.0,0.00041632,30]
[392236279,1761274259669,-500.0,0.00041632,30]
[392236280,1761274259679,-500.0,0.00041632,30]
[392236281,1761274259688,-637.87,0.00041632,30]
[392236282,1761274259697,-500.0,0.00041632,30]
[392236283,1761274259707,-524.36,0.00041632,30]
[392236284,1761274259716,-500.0,0.00041632,30]
[392236285,1761274259725,-817.53,0.00041632,30]
[392236286,1761274259735,-500.0,0.00041632,30]
[392236287,1761274259744,-500.0,0.00041632,30]
[392236288,1761274259753,-1051.92,0.00041632,30]
[392236289,1761274259763,-718.5,0.00041632,30]
[392236290,1761274259772,-714.73,0.00041632,30]
[392236291,1761274259781,-500.0,0.00041632,30]
[392236292,1761274259791,-500.0,0.00041632,30]
[392236293,1761274259800,-156.40798,0.00041632,30]
[392236294,1761274259809,-241.14523767,0.00041632,30]
[392236295,1761274259818,-766.76,0.00041632,30]
[392236296,1761274259827,-422.640814,0.00041632,30]
[392236297,1761274259836,-1003.52,0.00041632,30]
[392236298,1761274259846,-500.0,0.00041632,30]
[392236299,1761274259855,-519.72,0.00041632,30]
[392236300,1761274259864,-500.0,0.00041632,30]
[392236301,1761274259874,-500.0,0.00041632,30]
[392236302,1761274259886,-912.59,0.00041632,30]
[392236303,1761274259897,-500.0,0.00041632,30]
[392236304,1761274259908,-1073.92,0.00041632,30]
[392236305,1761274259918,-500.0,0.00041632,30]
[392236306,1761274259928,-500.0,0.00041632,30]
[392236307,1761274259938,-969.79,0.00041632,30]
[392236308,1761274259951,-500.0,0.00041632,30]
[392236309,1761274259961,-500.0,0.00041632,30]
[392236310,1761274259971,-911.06,0.00041632,30]
[392236311,1761274259980,-816.96,0.00041632,30]
[392236312,1761274259990,-500.0,0.00041632,30]
[392236313,1761274259999,-1003.57,0.00041632,30]
[392236314,1761274260009,-1043.31,0.00041632,30]
[392236315,1761274260018,-500.0,0.00041632,30]
[392236316,1761274260028,-500.0,0.00041632,30]
[392236317,1761274260038,-500.0,0.00041632,30]
[392236318,1761274260048,-500.0,0.00041632,30]
[392236319,1761274260057,-500.0,0.00041632,30]
[392236320,1761274260067,-589.36681858,0.00041632,30]
[392236321,1761274260076,-500.0,0.00041632,30]
[392236322,1761274260085,-874.47,0.00041632,30]
[392236323,1761274260095,-500.0,0.00041632,30]
[392236324,1761274260104,-1031.24,0.00041632,30]
[392236325,1761274260114,-500.0,0.00041632,30]
[392236326,1761274260123,-500.0,0.00041632,30]
[392236327,1761274260132,-500.0,0.00041632,30]
[392236328,1761274260142,-742.2,0.00041632,30]
[392236329,1761274260151,-500.0,0.00041632,30]
[392236330,1761274260161,-500.0,0.00041632,30]
[392236331,1761274260171,-970.25,0.00041632,30]
[392236332,1761274260180,-500.0,0.00041632,30]
[392236333,1761274260191,-500.0,0.00041632,30]
[392236334,1761274260201,-500.0,0.00041632,30]
[392236335,1761274260211,-500.0,0.00041632,30]
[392236336,1761274260221,-500.0,0.00041632,30]
[392236337,1761274260231,-500.0,0.00041632,30]
[392236338,1761274260241,-500.0,0.00041632,120]
[392236339,1761274260250,-930.94,0.00041632,30]
[392236340,1761274260260,-609.473835,0.00041632,30]
[392236341,1761274260270,-500.0,0.00041632,30]
[392236342,1761274260280,-500.0,0.00041632,30]
[392236343,1761274260290,-192.61527289,0.00041632,30]
[392236344,1761274260301,-851.91,0.00041632,30]
[392236345,1761274260310,-538.52,0.00041632,30]
[392236346,1761274260319,-500.0,0.00041632,30]
[392236347,1761274260329,-640.34,0.00041632,30]
[392236348,1761274260339,-500.0,0.00041632,30]
[392236349,1761274260349,-500.0,0.00041632,30]
[392236350,1761274260358,-500.0,0.00041632,30]
[392236351,1761274260368,-500.0,0.00041632,30]
[392236352,1761274260377,-713.05,0.00041632,30]
[392236353,1761274260387,-500.0,0.00041632,30]
[392236354,1761274260396,-860.87,0.00041632,30]
[392236355,1761274260407,-500.0,0.00041632,30]
[392236356,1761274260421,-500.0,0.00041632,30]
[392236357,1761274260431,-500.0,0.00041632,30]
[392236358,1761274260443,-428.99924006,0.00041632,30]
[392236359,1761274260452,-614.65,0.00041632,30]
[392236360,1761274260463,-500.0,0.00041632,30]
[392236361,1761274260473,-1091.44,0.00041632,30]
[392236362,1761274260483,-500.0,0.00041632,30]
[392236363,1761274260493,-500.0,0.00041632,30]
[392236364,1761274260875,-987.53,0.00041632,30]
[392236365,1761274260888,-721.02,0.00041632,30]
[392236366,1761274260897,-500.0,0.00041632,30]
[392236367,1761274260907,-500.0,0.00041632,30]
[392236368,1761274260917,-500.0,0.00041632,30]
[392236369,1761274260926,-787.97,0.00041632,30]
[392236370,1761274260937,-500.0,0.00041632,30]
[392236371,1761274260947,-500.0,0.00041632,30]
[392236372,1761274260956,-1063.81,0.00041632,30]
[392236373,1761274260965,-500.0,0.00041632,30]
[392236374,1761274260975,-1397.49,0.00041632,30]
[392236375,1761274260985,-519.34,0.00041632,30]
[392236376,1761274260995,-671.33,0.00041632,30]
[392236377,1761274261004,-500.0,0.00041632,30]
[392236378,1761274261014,-502.53,0.00041632,30]
[392236379,1761274261024,-500.0,0.00041632,30]
[392236380,1761274261034,-500.0,0.00041632,30]
[392236381,1761274261044,-702.38,0.00041632,30]
[392236382,1761274261054,-500.0,0.00041632,30]
[392236383,1761274261063,-876.68,0.00041632,30]
[392236384,1761274261073,-500.0,0.00041632,30]
[392236385,1761274261083,-500.0,0.00041632,30]
[392236386,1761274261092,-500.0,0.00041632,30]
[392236387,1761274261103,-1201.5,0.00041632,30]
[392236388,1761274261115,-722.06,0.00041632,30]
[392236389,1761274261125,-771.24,0.00041632,30]
[392236390,1761274261135,-500.0,0.00041632,30]
[392236391,1761274261144,-873.42,0.00041632,30]
[392236392,1761274261154,-1099.13,0.00041632,30]
[392236393,1761274261164,-500.0,0.00041632,30]
[392236394,1761274261174,-3634.23,0.00041632,30]
[392236395,1761274261184,-500.0,0.00041632,30]
[392236396,1761274261194,-500.0,0.00041632,2]
[392236397,1761274261203,-500.0,0.00041632,120]
[392236398,1761274261213,-500.0,0.00041632,30]
[392236399,1761274261223,-500.0,0.00041632,30]
[392236400,1761274261241,-500.0,0.00041632,30]
[392236401,1761274261254,-1006.28,0.00041632,30]
[392236402,1761274261264,-500.0,0.00041632,30]
[392236403,1761274261274,-1008.09,0.00041632,30]
[392236404,1761274261284,-692.42,0.00041632,30]
[392236405,1761274261294,-547.6770935,0.00041632,30]
[392236406,1761274261304,-500.0,0.00041632,30]
[392236407,1761274261314,-500.0,0.00041632,30]
[392236408,1761274261324,-500.0,0.00041632,30]
[392236409,1761274261334,-637.31,0.00041632,30]
[392236410,1761274261343,-1004.78,0.00041632,30]
[392236411,1761274261353,-927.24,0.00041632,30]
[392236412,1761274261363,-500.0,0.00041632,30]
[392236413,1761274261372,-500.0,0.00041632,30]
[392236414,1761274261382,-500.0,0.00041632,30]
[392236415,1761274261392,-500.0,0.00041632,30]
[392236416,1761274261402,-324.03661604,0.00041632,30]
[392236417,1761274261411,-926.36,0.00041632,30]
[392236418,1761274261422,-500.0,0.00041632,30]
[392236419,1761274261432,-1288.95,0.00041632,30]
[392236420,1761274261442,-500.0,0.00041632,30]
[392236421,1761274261452,-330.25840523,0.00041632,30]
[392236422,1761274261461,-500.0,0.00041632,30]
[392236423,1761274261471,-500.0,0.00041632,30]
[392236424,1761274261481,-607.6,0.00041632,30]
[392236425,1761274261490,-500.0,0.00041632,30]
[392236426,1761274261500,-500.0,0.00041632,30]
[392236427,1761274261510,-1181.81,0.00041632,30]
[392236428,1761274261520,-666.42,0.00041632,30]
[392236429,1761274261530,-1000.0,0.00041632,30]
[392236430,1761274261540,-500.0,0.00041632,30]
[392236431,1761274261550,-500.0,0.00041632,30]
[392236432,1761274261560,-500.0,0.00041632,30]
[392236433,1761274261570,-500.0,0.00041632,30]
[392236434,1761274261580,-836.37,0.00041632,30]
[392236435,1761274261589,-500.0,0.00041632,30]
[392236436,1761274261599,-835.85,0.00041632,30]
[392236437,1761274261608,-633.44,0.00041632,30]
[392236438,1761274261625,-960.23,0.00041632,30]
[392236439,1761274261634,-500.0,0.00041632,30]
[392236440,1761274261644,-876.43,0.00041632,30]
[392236441,1761274261653,-500.0,0.00041632,30]
[392236442,1761274261663,-500.0,0.00041632,30]
[392236443,1761274261673,-500.0,0.00041632,30]
[392236444,1761274261683,-500.0,0.00041632,30]
[392236445,1761274261692,-500.0,0.00041632,30]
[392236446,1761274261704,-500.0,0.00041632,30]
[392236447,1761274261714,-774.47,0.00041632,30]
[392236448,1761274261724,-230.52445367,0.00041632,30]
[392236449,1761274261734,-500.0,0.00041632,30]
[392236450,1761274261744,-500.0,0.00041632,30]
[392236451,1761274261754,-668.18,0.00041632,30]
[392236452,1761274261763,-500.0,0.00041632,30]
[392236453,1761274261773,-500.0,0.00041632,30]
[392236454,1761274261782,-500.0,0.00041632,30]
[392236455,1761274261792,-713.84,0.00041632,30]
[392236456,1761274261801,-500.0,0.00041632,30]
[392236457,1761274261811,-971.57,0.00041632,30]
[392236458,1761274261820,-896.95,0.00041632,30]
[392236459,1761274261830,-500.0,0.00041632,30]
[392236460,1761274261840,-500.0,0.00041632,30]
[392236461,1761274261849,-729.18,0.00041632,30]
[392236462,1761274261859,-500.0,0.00041632,30]
[392236463,1761274261869,-422.02477038,0.00041632,30]
[392236464,1761274261879,-553.98,0.00041632,30]
[392236465,1761274261889,-500.0,0.00041632,30]
[392236466,1761274261899,-855.04,0.00041632,30]
[392236467,1761274261910,-609.14,0.00041632,30]
[392236468,1761274261919,-500.0,0.00041632,30]
[392236469,1761274261929,-500.0,0.00041632,30]
[392236470,1761274261939,-500.0,0.00041632,30]
[392236471,1761274261950,-500.0,0.00041632,30]
[392236472,1761274261960,-763.89,0.00041632,30]
[392236473,1761274261971,-500.0,0.00041632,30]
[392236474,1761274261982,-500.0,0.00041632,30]
[392236475,1761274261992,-274.56,0.00041632,30]
[392236476,1761274262006,-153.855845,0.00041633,120]
[392236477,1761274262017,-151.0,0.00041633,120]
[392236478,1761274262029,-166.44082,0.00041633,120]
[392236479,1761274262040,-208.44004297,0.0004164,30]
[392236480,1761274262052,-729.84,0.0004164,30]
[392236481,1761274262073,-500.0,0.0004164,30]
[392236482,1761274262086,-500.0,0.0004164,30]
[392236483,1761274262097,-678.0,0.0004164,30]
[392236484,1761274262107,-510.81,0.0004164,30]
[392236485,1761274262119,-541.78,0.0004164,30]
[392236486,1761274262129,-500.0,0.0004164,30]
[392236487,1761274262139,-621.31,0.0004164,30]
[392236488,1761274262149,-500.0,0.0004164,30]
[392236489,1761274262158,-500.0,0.0004164,30]
[392236490,1761274262167,-506.53,0.0004164,30]
[392236491,1761274262177,-500.0,0.0004164,30]
[392236492,1761274262187,-500.0,0.0004164,30]
[392236493,1761274262196,-500.0,0.0004164,30]
[392236494,1761274262206,-500.0,0.0004164,30]
[392236495,1761274262215,-715.23,0.0004164,30]
[392236496,1761274262225,-500.0,0.0004164,30]
[392236497,1761274262235,-500.0,0.0004164,30]
[392236498,1761274262245,-1107.27,0.0004164,30]
[392236499,1761274262254,-500.0,0.0004164,30]
[392236500,1761274262264,-500.0,0.0004164,30]
[392236501,1761274262274,-681.93,0.0004164,30]
[392236502,1761274262284,-1078.52,0.0004164,30]
[392236503,1761274262293,-500.0,0.0004164,30]
[392236504,1761274262303,-500.0,0.0004164,30]
[392236505,1761274262314,-500.0,0.0004164,30]
[392236506,1761274262323,-500.0,0.0004164,30]
[392236507,1761274262333,-500.0,0.0004164,30]
[392236508,1761274262342,-500.0,0.0004164,30]
[392236509,1761274262352,-500.0,0.0004164,30]
[392236510,1761274262362,-699.99,0.0004164,30]
[392236511,1761274262371,-500.0,0.0004164,30]
[392236512,1761274262381,-500.0,0.0004164,30]
[392236513,1761274262390,-500.0,0.0004164,30]
[392236514,1761274262399,-500.0,0.0004164,30]
[392236515,1761274262412,-500.0,0.0004164,30]
[392236516,1761274262422,-500.0,0.0004164,30]
[392236517,1761274262431,-500.0,0.0004164,30]
[392236518,1761274262441,-500.0,0.0004164,30]
[392236519,1761274262452,-1015.85,0.0004164,30]
[392236520,1761274262462,-500.0,0.0004164,30]
[392236521,1761274262472,-1107.01,0.0004164,30]
[392236522,1761274262482,-436.31247438,0.0004164,30]
[392236523,1761274262491,-500.0,0.0004164,30]
[392236524,1761274262500,-500.0,0.0004164,30]
[392236525,1761274262510,-675.19,0.0004164,30]
[392236526,1761274262519,-500.0,0.0004164,30]
[392236527,1761274262528,-500.0,0.0004164,30]
[392236528,1761274262537,-500.0,0.0004164,30]
[392236529,1761274262547,-500.0,0.0004164,30]
[392236530,1761274262556,-524.52,0.0004164,30]
[392236531,1761274262565,-500.0,0.0004164,30]
[392236532,1761274262575,-573.89,0.0004164,30]
[392236533,1761274262584,-500.0,0.0004164,30]
[392236534,1761274262593,-1103.2,0.0004164,30]
[392236535,1761274262602,-822.02,0.0004164,30]
[392236536,1761274262611,-500.0,0.0004164,30]
[392236537,1761274262621,-542.87,0.0004164,30]
[392236538,1761274262631,-500.0,0.0004164,30]
[392236539,1761274262640,-732.83,0.0004164,30]
[392236540,1761274262650,-596.45,0.0004164,30]
[392236541,1761274262660,-826.81,0.0004164,30]
[392236542,1761274262669,-500.0,0.0004164,30]
[392236543,1761274262678,-500.0,0.0004164,30]
[392236544,1761274262688,-500.0,0.0004164,30]
[392236545,1761274262697,-500.0,0.0004164,30]
[392236546,1761274262706,-500.0,0.0004164,30]
[392236547,1761274262716,-500.0,0.0004164,30]
[392236548,1761274262725,-523.89,0.0004164,30]
[392236549,1761274262734,-526.65243832,0.0004164,30]
[392236550,1761274262743,-500.0,0.0004164,30]
[392236551,1761274262753,-500.0,0.0004164,30]
[392236552,1761274262762,-500.0,0.00041641,30]
[392236553,1761274262771,-500.0,0.00041641,30]
[392236554,1761274262780,-500.0,0.00041641,30]
[392236555,1761274262789,-500.0,0.00041641,30]
[392236556,1761274262798,-500.0,0.00041641,30]
[392236557,1761274262807,-500.0,0.00041641,30]
[392236558,1761274262816,-500.0,0.00041641,30]
[392236559,1761274262825,-500.0,0.00041641,30]
[392236560,1761274262835,-500.0,0.00041641,30]
[392236561,1761274262844,-500.0,0.00041641,30]
[392236562,1761274262853,-500.0,0.00041641,30]
[392236563,1761274262862,-500.0,0.00041641,30]
[392236564,1761274262871,-500.0,0.00041641,30]
[392236565,1761274262881,-500.0,0.00041641,30]
[392236566,1761274262891,-500.0,0.00041641,30]
[392236567,1761274262900,-500.0,0.00041641,30]
[392236568,1761274262909,-537.82338981,0.00041641,30]
[392236569,1761274262919,-500.0,0.00041641,30]
[392236570,1761274262928,-500.0,0.00041641,30]
[392236571,1761274262938,-500.0,0.00041641,30]
[392236572,1761274262948,-500.0,0.00041641,30]
[392236573,1761274262957,-500.0,0.00041641,30]
[392236574,1761274262967,-500.0,0.00041641,30]
[392236575,1761274262979,-500.0,0.00041641,30]
[392236576,1761274262991,-500.0,0.00041641,30]
[392236577,1761274263000,-500.0,0.00041641,30]
[392236578,1761274263010,-500.0,0.00041641,30]
[392236579,1761274263019,-501.60612852,0.00041641,30]
[392236580,1761274263028,-500.0,0.00041641,30]
[392236581,1761274263037,-500.0,0.00041641,30]
[392236582,1761274263046,-500.0,0.00041641,30]
[392236583,1761274263056,-500.0,0.00041641,30]
[392236584,1761274263073,-500.0,0.00041641,30]
[392236585,1761274263084,-500.0,0.00041641,30]
[392236586,1761274263094,-500.0,0.00041641,30]
[392236587,1761274263104,-217.0083048,0.00041641,30]
[392236588,1761274263114,-500.0,0.00041641,30]
[392236589,1761274263123,-500.0,0.00041641,30]
[392236590,1761274263132,-500.0,0.00041641,30]
[392236591,1761274263142,-500.0,0.00041641,30]
[392236592,1761274263151,-500.0,0.00041641,30]
[392236593,1761274263161,-500.0,0.00041641,30]
[392236594,1761274263170,-500.0,0.00041641,30]
[392236595,1761274263191,-500.0,0.00041641,30]
[392236596,1761274263201,-500.0,0.00041641,30]
[392236597,1761274263211,-500.0,0.00041641,30]
[392236598,1761274263221,-500.0,0.00041641,30]
[392236599,1761274263230,-500.0,0.00041641,30]
[392236600,1761274263240,-500.0,0.00041641,30]
[392236601,1761274263250,-500.0,0.00041641,30]
[392236602,1761274263259,-500.0,0.00041641,30]
[392236603,1761274263270,-500.0,0.00041641,30]
[392236604,1761274263279,-500.0,0.00041641,30]
[392236605,1761274263289,-500.0,0.00041641,30]
[392236606,1761274263302,-500.0,0.00041641,30]
[392236607,1761274263321,-500.0,0.00041641,30]
[392236608,1761274263332,-500.0,0.00041641,30]
[392236609,1761274263342,-571.80217589,0.00041641,30]
[392236610,1761274263351,-500.0,0.00041641,30]
[392236611,1761274263360,-465.8375016,0.00041641,30]
[392236612,1761274263370,-500.0,0.00041641,30]
[392236613,1761274263379,-528.06005498,0.00041641,30]
[392236614,1761274263388,-500.0,0.00041641,30]
[392236615,1761274263398,-213.59134886,0.00041641,30]
[392236616,1761274263407,-500.0,0.00041641,30]
[392236617,1761274263416,-968.28,0.00041641,30]
[392236618,1761274263426,-500.0,0.00041641,30]
[392236619,1761274263435,-500.0,0.00041641,30]
[392236620,1761274263445,-500.0,0.00041641,30]
[392236621,1761274263454,-500.0,0.00041641,30]
[392236622,1761274263464,-500.0,0.00041641,30]
[392236623,1761274263473,-500.0,0.00041642,30]
[392236624,1761274263482,-500.0,0.00041642,30]
[392236625,1761274263491,-500.0,0.00041642,30]
[392236626,1761274263500,-500.0,0.00041642,30]
[392236627,1761274263509,-500.0,0.00041642,30]
[392236628,1761274263519,-500.0,0.00041642,30]
[392236629,1761274263528,-292.14463658,0.00041642,30]
[392236630,1761274263537,-500.0,0.00041642,30]
[392236631,1761274263546,-627.01,0.00041642,30]
[392236632,1761274263555,-500.0,0.00041642,30]
[392236633,1761274263564,-500.0,0.00041642,30]
[392236634,1761274263574,-500.0,0.00041642,30]
[392236635,1761274263583,-500.0,0.00041642,30]
[392236636,1761274263592,-500.0,0.00041643,30]
[392236637,1761274263601,-500.0,0.00041643,30]
[392236638,1761274263611,-500.0,0.00041643,30]
[392236639,1761274263622,-500.0,0.00041643,30]
[392236640,1761274263632,-500.0,0.00041643,30]
[392236641,1761274263642,-500.0,0.00041643,30]
[392236642,1761274263651,-500.0,0.00041643,30]
[392236643,1761274263660,-500.0,0.00041643,30]
[392236644,1761274263670,-1019.83,0.00041643,30]
[392236645,1761274263679,-500.0,0.00041643,30]
[392236646,1761274263689,-962.29,0.00041643,30]
[392236647,1761274263699,-500.0,0.00041643,30]
[392236648,1761274263708,-500.0,0.00041643,30]
[392236649,1761274263717,-1406.24,0.00041643,30]
[392236650,1761274263728,-567.97,0.00041643,30]
[392236651,1761274263737,-1035.33,0.00041643,30]
[392236652,1761274263748,-500.0,0.00041643,30]
[392236653,1761274263757,-500.0,0.00041643,30]
[392236654,1761274263766,-420.25209443,0.00041643,30]
[392236655,1761274263776,-500.0,0.00041643,30]
[392236656,1761274263785,-500.0,0.00041643,30]
[392236657,1761274263795,-639.76,0.00041643,30]
[392236658,1761274263805,-500.0,0.00041643,30]
[392236659,1761274263815,-692.37,0.00041643,30]
[392236660,1761274263825,-844.94,0.00041643,30]
[392236661,1761274263835,-311.12113542,0.00041643,30]
[392236662,1761274263845,-500.0,0.00041643,30]
[392236663,1761274263855,-507.14,0.00041643,30]
[392236664,1761274263864,-500.0,0.00041643,30]
[392236665,1761274263873,-464.22729953,0.00041643,30]